bitfinex/quotes_BTCUSD_20230113
["timestamp","ask_amount","ask_price","bid_price","bid_amount"]
[1673572823210,0.01488106,18818.0,18817.0,0.58847876]
[1673572823702,0.01488106,18818.0,18817.0,0.74696888]
[1673572823946,0.01488106,18818.0,18817.0,0.58847876]
[1673572824194,0.01488106,18818.0,18817.0,0.74696888]
[1673572825429,0.01488106,18818.0,18817.0,0.74690888]
[1673572825941,0.01488106,18818.0,18817.0,1.10046018]
[1673572826192,0.01488106,18818.0,18817.0,0.58841876]
[1673572826456,0.01488106,18818.0,18817.0,0.74690888]
[1673572826707,0.01488106,18818.0,18817.0,1.14377272]
[1673572826957,0.01488106,18818.0,18817.0,1.5787685]
[1673572827457,0.01488106,18818.0,18817.0,1.73726499]
[1673572827699,0.01488106,18818.0,18817.0,1.89611362]
[1673572827944,0.01488106,18818.0,18817.0,1.73732314]
[1673572828657,0.01488106,18818.0,18817.0,1.73731294]
[1673572828900,0.01488106,18818.0,18817.0,0.98497204]
[1673572830182,0.01488106,18818.0,18817.0,0.7469632]
[1673572831424,0.01488106,18818.0,18817.0,1.33331352]
[1673572831674,0.01488106,18818.0,18817.0,1.23331352]
[1673572831969,0.01488106,18818.0,18817.0,1.07476908]
[1673572833386,0.01488106,18818.0,18817.0,0.93576908]
[1673572833613,0.01588106,18818.0,18817.0,1.07376908]
[1673572833861,0.01488106,18818.0,18817.0,0.93576908]
[1673572834119,0.10998106,18818.0,18817.0,0.74438908]
[1673572834366,0.10998106,18818.0,18817.0,0.15803876]
[1673572835611,0.68481853,18818.0,18817.0,0.15803876]
[1673572835864,0.77891853,18818.0,18817.0,0.15803876]
[1673572836111,1.07779853,18818.0,18817.0,0.15803876]
[1673572836361,0.77891853,18818.0,18817.0,0.15803876]
[1673572837397,0.77791853,18818.0,18817.0,0.01903876]
[1673572837641,0.77991853,18818.0,18817.0,0.15903876]
[1673572838163,0.11098106,18818.0,18817.0,0.15903876]
[1673572838918,0.11098106,18818.0,18817.0,0.598681]
[1673572839162,0.01488106,18819.0,18818.0,0.1941]
[1673572839406,0.01488106,18819.0,18818.0,0.52448]
[1673572840187,0.01488106,18819.0,18818.0,1.32773329]
[1673572840438,0.01488106,18819.0,18818.0,0.80202444]
[1673572840439,0.01588106,18819.0,18818.0,0.80202444]
[1673572840931,0.01588106,18819.0,18818.0,0.68302444]
[1673572841186,0.01488106,18819.0,18818.0,0.52448]
[1673572841429,0.01688106,18819.0,18818.0,1.27554633]
[1673572842187,0.01488106,18819.0,18818.0,0.52448]
[1673572842435,0.01688106,18819.0,18818.0,0.66348]
[1673572842943,0.01688106,18819.0,18818.0,1.2837243]
[1673572843443,0.01688106,18819.0,18818.0,1.2837843]
[1673572845154,0.01688106,18819.0,18818.0,1.1837843]
[1673572846870,0.01688106,18819.0,18818.0,0.8534043]
[1673572847624,0.01688106,18819.0,18818.0,1.1837843]
[1673572848624,0.01688106,18819.0,18818.0,1.1837243]
[1673572851805,0.01688106,18819.0,18818.0,0.8533443]
[1673572853125,0.01688106,18819.0,18818.0,1.1837243]
[1673572853627,0.01688106,18819.0,18818.0,0.8533443]
[1673572853878,0.6121321,18819.0,18818.0,0.2331]
[1673572854115,0.11038106,18819.0,18818.0,0.2331]
[1673572855615,0.11038106,18819.0,18818.0,0.56348]
[1673572856120,0.11038106,18819.0,18818.0,0.2331]
[1673572856368,0.76149315,18819.0,18818.0,0.2331]
[1673572857603,0.11038106,18819.0,18818.0,0.2331]
[1673572857842,0.11038106,18819.0,18818.0,0.56348]
[1673572858084,0.11038106,18819.0,18818.0,0.2331]
[1673572859087,0.81025857,18819.0,18818.0,0.2331]
[1673572861286,0.80941457,18819.0,18818.0,0.2331]
[1673572872656,0.80941457,18819.0,18818.0,0.0941]
[1673572872657,0.80741457,18819.0,18818.0,0.0941]
[1673572872910,0.94041518,18819.0,18818.0,0.2331]
[1673572873160,2.14644468,18819.0,18818.0,0.0941]
[1673572873417,2.14844468,18819.0,18818.0,0.2331]
[1673572873661,2.14644303,18819.0,18818.0,0.0941]
[1673572873904,1.83161275,18819.0,18818.0,0.2331]
[1673572874157,1.83161275,18819.0,18818.0,0.0941]
[1673572874158,2.00149615,18819.0,18818.0,0.0941]
[1673572874411,2.33962402,18819.0,18818.0,0.1461]
[1673572874925,1.81274469,18819.0,18818.0,0.1461]
[1673572875175,1.9348863,18819.0,18818.0,0.1461]
[1673572875418,1.8338863,18819.0,18818.0,0.0941]
[1673572875661,1.43800702,18819.0,18818.0,0.0941]
[1673572875926,1.69716767,18819.0,18818.0,0.0941]
[1673572876182,1.8403863,18819.0,18818.0,0.0941]
[1673572876438,1.7403863,18819.0,18818.0,0.0941]
[1673572876676,1.7403863,18819.0,18818.0,0.2191]
[1673572876677,1.58317363,18819.0,18818.0,0.2191]
[1673572876920,1.68317363,18819.0,18818.0,0.2191]
[1673572879396,1.44439312,18819.0,18818.0,0.2191]
[1673572879634,1.68317363,18819.0,18818.0,0.2191]
[1673572879887,1.68117363,18819.0,18818.0,0.0941]
[1673572880118,1.68317363,18819.0,18818.0,0.2191]
[1673572881051,1.68117363,18819.0,18818.0,0.0941]
[1673572881292,1.68317363,18819.0,18818.0,0.2191]
[1673572881555,1.68117363,18819.0,18818.0,0.0941]
[1673572881796,1.68317363,18819.0,18818.0,0.2191]
[1673572882061,1.68317363,18819.0,18818.0,0.0941]
[1673572882292,1.68517363,18819.0,18818.0,0.2191]
[1673572882587,1.68517363,18819.0,18818.0,0.125]
[1673572883030,1.8443863,18819.0,18818.0,0.125]
[1673572884223,1.8443863,18819.0,18818.0,0.12491152]
[1673572884959,1.16237685,18819.0,18818.0,0.12491152]
[1673572885204,1.73593181,18819.0,18818.0,0.12491152]
[1673572885452,1.97466234,18819.0,18818.0,0.12491152]
[1673572885711,2.18946074,18819.0,18818.0,0.12491152]
[1673572887181,1.87108146,18819.0,18818.0,0.12491152]
[1673572887425,2.41899266,18819.0,18818.0,0.12491152]
[1673572887921,2.10070559,18819.0,18818.0,0.12491152]
[1673572888155,2.41901032,18819.0,18818.0,0.12491152]
[1673572888637,2.51301032,18819.0,18818.0,0.12491152]
[1673572889389,2.00067485,18819.0,18818.0,0.12491152]
[1673572889632,2.36730234,18819.0,18818.0,0.12491152]
[1673572889878,2.00062015,18819.0,18818.0,0.12491152]
[1673572890106,2.5687432,18819.0,18818.0,0.12491152]
[1673572891395,2.0272517,18819.0,18818.0,0.12491152]
[1673572891643,1.53782257,18819.0,18818.0,0.12491152]
[1673572892181,0.1,18818.0,18817.0,6e-05]
[1673572892434,1.17369523,18818.0,18817.0,6e-05]
[1673572892693,1.47257523,18818.0,18817.0,6e-05]
[1673572893438,1.63813006,18818.0,18817.0,6e-05]
[1673572893941,1.65413006,18818.0,18817.0,6e-05]
[1673572894431,2.26698121,18818.0,18817.0,6e-05]
[1673572894671,0.97172991,18818.0,18817.0,6e-05]
[1673572894918,1.51792138,18818.0,18817.0,6e-05]
[1673572895162,1.81792138,18818.0,18817.0,6e-05]
[1673572895652,1.03310019,18818.0,18817.0,6e-05]
[1673572895899,1.66048835,18818.0,18817.0,6e-05]
[1673572896140,1.27173971,18818.0,18817.0,6e-05]
[1673572896386,1.97364001,18818.0,18817.0,6e-05]
[1673572896633,1.26673971,18818.0,18817.0,6e-05]
[1673572896874,1.80762414,18818.0,18817.0,6e-05]
[1673572897135,2.04624647,18818.0,18817.0,6e-05]
[1673572897625,2.04624644,18818.0,18817.0,6e-05]
[1673572897891,2.20539938,18818.0,18817.0,6e-05]
[1673572898127,1.67103082,18818.0,18817.0,6e-05]
[1673572898582,2.2650621,18818.0,18817.0,6e-05]
[1673572898819,2.20750671,18818.0,18817.0,6e-05]
[1673572899354,1.80973147,18818.0,18817.0,6e-05]
[1673572899857,2.04836,18818.0,18817.0,6e-05]
[1673572900113,2.30437723,18818.0,18817.0,6e-05]
[1673572900362,1.45432872,18818.0,18817.0,6e-05]
[1673572901054,2.00840462,18818.0,18817.0,6e-05]
[1673572901545,1.45432872,18818.0,18813.0,0.93274347]
[1673572901801,0.094,18816.0,18813.0,0.93274347]
[1673572902046,0.29888,18815.0,18813.0,0.60284347]
[1673572902292,0.194,18816.0,18813.0,0.60284347]
[1673572902787,0.29888,18815.0,18813.0,0.60284347]
[1673572903037,0.1956,18816.0,18813.0,0.74184347]
[1673572903552,0.29888,18815.0,18814.0,0.54744434]
[1673572903804,0.1936,18816.0,18814.0,0.54744434]
[1673572904050,0.30088,18815.0,18814.0,0.54744434]
[1673572904351,0.1936,18816.0,18814.0,0.54744434]
[1673572904586,0.7321973,18816.0,18814.0,0.54744434]
[1673572904864,0.29888,18815.0,18813.0,0.14003231]
[1673572905112,0.7321973,18816.0,18813.0,0.71784622]
[1673572905602,0.7301973,18816.0,18813.0,0.57884622]
[1673572905854,0.7321973,18816.0,18813.0,0.57884622]
[1673572906103,0.7301973,18816.0,18813.0,0.57884622]
[1673572906354,0.7321973,18816.0,18813.0,0.71784622]
[1673572908056,0.6385973,18816.0,18813.0,0.71784622]
[1673572908551,0.50909053,18815.0,18813.0,0.71784622]
[1673572908798,0.50909053,18815.0,18813.0,0.71778622]
[1673572909530,0.50909053,18815.0,18813.0,0.57878622]
[1673572909814,0.51109053,18815.0,18813.0,0.71778622]
[1673572913822,0.51109053,18815.0,18814.0,0.33038]
[1673572914065,0.65209053,18815.0,18813.0,0.71778622]
[1673572914310,0.91117476,18815.0,18813.0,0.71778622]
[1673572914558,0.90917476,18815.0,18813.0,0.57878622]
[1673572914809,0.91117476,18815.0,18814.0,0.14]
[1673572915067,0.90917476,18815.0,18813.0,0.57878622]
[1673572915359,0.75009053,18815.0,18813.0,0.71778622]
[1673572915601,0.75209053,18815.0,18813.0,0.57878622]
[1673572915844,0.75409053,18815.0,18814.0,0.14]
[1673572916094,0.75009053,18815.0,18813.0,0.57878622]
[1673572916334,0.75009053,18815.0,18813.0,0.71778622]
[1673572916579,0.75209053,18815.0,18813.0,0.71778622]
[1673572917576,0.75209053,18815.0,18814.0,0.14]
[1673572917820,0.75009053,18815.0,18813.0,0.57878622]
[1673572918317,0.91117476,18815.0,18813.0,0.71778622]
[1673572918561,0.90917476,18815.0,18814.0,0.14]
[1673572918810,0.90917476,18815.0,18813.0,0.57878622]
[1673572919322,0.91117476,18815.0,18813.0,0.71778622]
[1673572920546,0.90917476,18815.0,18813.0,0.57878622]
[1673572920790,0.91117476,18815.0,18814.0,0.14]
[1673572921032,0.81117476,18815.0,18814.0,0.14]
[1673572921504,0.80917476,18815.0,18813.0,0.57878622]
[1673572922110,0.81117476,18815.0,18814.0,0.14]
[1673572923074,0.80917476,18815.0,18813.0,0.73733066]
[1673572923323,0.30208423,18815.0,18813.0,0.87633066]
[1673572923584,0.141,18815.0,18813.0,0.73733066]
[1673572923845,0.143,18815.0,18814.0,0.14]
[1673572924087,0.30208423,18815.0,18814.0,0.14]
[1673572924345,0.30408423,18815.0,18814.0,0.14]
[1673572925089,0.30008423,18815.0,18813.0,0.73733066]
[1673572925856,0.30008423,18815.0,18813.0,0.9753395]
[1673572926103,0.30000104,18815.0,18813.0,0.9753395]
[1673572926348,0.29908423,18815.0,18813.0,0.9753395]
[1673572926593,0.29908423,18815.0,18813.0,1.1143395]
[1673572926844,0.29908423,18815.0,18814.0,6e-05]
[1673572926845,0.40108423,18815.0,18814.0,6e-05]
[1673572928180,0.69996423,18815.0,18814.0,0.14006]
[1673572928445,0.93859276,18815.0,18814.0,0.14006]
[1673572928979,1.52555762,18815.0,18814.0,0.14006]
[1673572929251,1.68469358,18815.0,18814.0,0.14006]
[1673572929442,1.44606505,18815.0,18814.0,0.14006]
[1673572929689,1.38621509,18815.0,18814.0,0.14006]
[1673572929936,1.44606505,18815.0,18814.0,0.14006]
[1673572930400,1.14718505,18815.0,18814.0,0.14006]
[1673572930613,1.38621049,18815.0,18814.0,0.14006]
[1673572930832,1.68509049,18815.0,18814.0,0.14006]
[1673572931774,1.68503741,18815.0,18814.0,0.14006]
[1673572932804,1.26681722,18815.0,18814.0,0.14006]
[1673572933045,1.12725443,18815.0,18814.0,0.14006]
[1673572933781,1.12725443,18815.0,18814.0,0.14]
[1673572934024,1.28615741,18815.0,18814.0,0.14]
[1673572934274,1.68503741,18815.0,18814.0,0.14]
[1673572935753,1.38615741,18815.0,18814.0,0.14]
[1673572936005,1.68503741,18815.0,18814.0,0.14]
[1673572937236,1.38615741,18815.0,18814.0,0.14]
[1673572937473,1.68503741,18815.0,18814.0,0.14]
[1673572938490,1.38615741,18815.0,18814.0,0.14]
[1673572938735,1.22720734,18815.0,18814.0,0.14]
[1673572939435,1.36681722,18815.0,18814.0,0.14]
[1673572939694,1.52607171,18815.0,18814.0,0.14]
[1673572939933,1.68503741,18815.0,18814.0,0.14]
[1673572940203,1.1271851,18815.0,18814.0,0.14]
[1673572942140,1.4260651,18815.0,18814.0,0.14]
[1673572942388,1.5260651,18815.0,18814.0,0.14]
[1673572943865,1.2271851,18815.0,18814.0,0.14]
[1673572944113,1.42612695,18815.0,18814.0,0.14]
[1673572944872,1.12724695,18815.0,18814.0,0.14]
[1673572945123,0.88827459,18815.0,18814.0,0.14]
[1673572945362,1.12724695,18815.0,18814.0,0.14]
[1673572947118,1.52612695,18815.0,18814.0,0.14]
[1673572948067,1.9014984,18815.0,18814.0,0.14]
[1673572948562,2.04480226,18815.0,18814.0,0.14]
[1673572948799,1.84384029,18815.0,18814.0,0.14]
[1673572949290,1.60262037,18815.0,18814.0,0.14]
[1673572949562,1.90150037,18815.0,18814.0,0.14]
[1673572949821,1.84384029,18815.0,18814.0,0.14]
[1673572950518,1.54496029,18815.0,18814.0,0.13992928]
[1673572950754,1.90053586,18815.0,18814.0,0.13992928]
[1673572951239,2.05802388,18815.0,18814.0,0.13992928]
[1673572951474,2.114719,18815.0,18814.0,0.13992928]
[1673572951741,1.84384029,18815.0,18814.0,0.13992928]
[1673572951993,1.54496029,18815.0,18814.0,0.13992928]
[1673572952231,1.84384029,18815.0,18814.0,0.13992928]
[1673572952511,1.58508204,18815.0,18814.0,0.13992928]
[1673572952999,1.68508204,18815.0,18814.0,0.13992928]
[1673572953492,1.90053909,18815.0,18814.0,0.13992928]
[1673572953736,1.83407667,18815.0,18814.0,0.13992928]
[1673572953984,2.13295667,18815.0,18814.0,0.13992928]
[1673572954231,2.43295667,18815.0,18814.0,0.13992928]
[1673572954465,2.13295667,18815.0,18814.0,0.13992928]
[1673572954713,2.43295667,18815.0,18814.0,0.13992928]
[1673572955201,2.13295667,18815.0,18814.0,0.13992928]
[1673572955439,1.90054094,18815.0,18814.0,0.13992928]
[1673572955943,1.58232075,18815.0,18814.0,0.13992928]
[1673572956173,1.88232075,18815.0,18814.0,0.13992928]
[1673572956905,1.58344075,18815.0,18814.0,0.13992928]
[1673572957159,1.88232075,18815.0,18814.0,0.13992928]
[1673572957401,2.09468283,18815.0,18814.0,0.13992928]
[1673572958365,2.41329407,18815.0,18814.0,0.13992928]
[1673572959304,2.41328514,18815.0,18814.0,0.13992928]
[1673572959544,2.09468283,18815.0,18814.0,0.13992928]
[1673572959844,2.41326623,18815.0,18814.0,0.13992928]
[1673572960100,2.09468283,18815.0,18814.0,0.13992928]
[1673572960354,2.41326687,18815.0,18814.0,0.13992928]
[1673572960600,2.41326948,18815.0,18814.0,0.13992928]
[1673572961530,2.11438948,18815.0,18814.0,0.13992928]
[1673572961765,2.41326948,18815.0,18814.0,0.13992928]
[1673572962013,2.11438948,18815.0,18814.0,0.13992928]
[1673572962263,2.11326948,18815.0,18814.0,0.13992928]
[1673572962542,2.41326948,18815.0,18814.0,0.13992928]
[1673572963525,2.11438948,18815.0,18814.0,0.13992928]
[1673572963759,2.41326948,18815.0,18814.0,0.13992928]
[1673572964227,2.11326948,18815.0,18814.0,0.13992928]
[1673572964473,2.41326948,18815.0,18814.0,0.13992928]
[1673572965111,2.11438948,18815.0,18814.0,0.13992928]
[1673572965396,1.77747543,18815.0,18814.0,0.13992928]
[1673572965574,2.33341346,18815.0,18814.0,0.13992928]
[1673572965786,2.12235701,18815.0,18814.0,0.13992928]
[1673572966113,1.77747543,18815.0,18814.0,0.13992928]
[1673572966301,2.6308027,18815.0,18814.0,0.13992928]
[1673572966503,2.12235701,18815.0,18814.0,0.13992928]
[1673572966679,1.77747543,18815.0,18814.0,0.13992928]
[1673572967343,2.12235701,18815.0,18814.0,0.13992928]
[1673572967538,1.77747543,18815.0,18814.0,0.13992928]
[1673572967785,2.44973068,18815.0,18814.0,0.13992928]
[1673572968004,2.55875813,18815.0,18814.0,0.13992928]
[1673572968226,2.1605686,18815.0,18814.0,0.13992928]
[1673572968658,2.55877101,18815.0,18814.0,0.13992928]
[1673572972109,2.41747101,18815.0,18814.0,0.13992928]
[1673572973526,2.0192686,18815.0,18814.0,0.13992928]
[1673572975207,0.1,18814.0,18813.0,0.00103231]
[1673572975474,1.55701039,18814.0,18813.0,0.00103231]
[1673572975735,2.2536201,18814.0,18813.0,6e-05]
[1673572976456,1.99316385,18814.0,18813.0,6e-05]
[1673572977222,1.99516385,18814.0,18813.0,0.05806]
[1673572977467,2.31378467,18814.0,18813.0,0.05806]
[1673572977719,1.99516385,18814.0,18813.0,0.05806]
[1673572978210,2.25730351,18814.0,18813.0,0.05806]
[1673572978661,1.99516385,18814.0,18813.0,0.05806]
[1673572979176,2.31375718,18814.0,18813.0,0.05806]
[1673572979686,1.99516385,18814.0,18813.0,0.05806]
[1673572982383,2.31375518,18814.0,18813.0,0.05806]
[1673572983020,1.99516385,18814.0,18813.0,0.05806]
[1673572983995,2.31376013,18814.0,18813.0,0.05806]
[1673572984997,2.31376013,18814.0,18813.0,0.058]
[1673572985958,1.99516385,18814.0,18813.0,0.058]
[1673572986467,2.34481847,18814.0,18813.0,0.058]
[1673572986679,1.72729577,18814.0,18813.0,0.058]
[1673572986895,2.02617577,18814.0,18813.0,0.058]
[1673572987653,2.04481639,18814.0,18813.0,0.058]
[1673572988152,1.28946225,18814.0,18813.0,0.058]
[1673572988405,2.04534799,18814.0,18813.0,0.058]
[1673572988651,2.12683691,18814.0,18813.0,0.058]
[1673572988893,1.82795691,18814.0,18813.0,0.058]
[1673572989108,2.18554713,18814.0,18813.0,0.058]
[1673572989647,2.48554713,18814.0,18813.0,0.058]
[1673572990575,2.18554713,18814.0,18813.0,0.058]
[1673572990821,1.72854225,18814.0,18813.0,0.058]
[1673572991064,1.42966225,18814.0,18813.0,0.058]
[1673572991306,2.16744948,18814.0,18813.0,0.058]
[1673572991590,1.86856948,18814.0,18813.0,0.058]
[1673572991833,2.16744948,18814.0,18813.0,0.058]
[1673572993010,2.16744948,18814.0,18813.0,0.05791964]
[1673572994224,1.07264511,18814.0,18813.0,0.05791964]
[1673572994487,1.71922481,18814.0,18813.0,0.05791964]
[1673572995737,1.59887781,18814.0,18813.0,0.05791964]
[1673572996002,1.59887781,18814.0,18812.0,0.00544608]
[1673572996003,0.1,18813.0,18812.0,0.00544608]
[1673572996247,1.80635298,18813.0,18812.0,8e-08]
[1673572996552,1.80635298,18813.0,18808.0,0.00588261]
[1673572996553,0.1,18812.0,18808.0,0.00588261]
[1673572996773,0.31867144,18809.0,18808.0,0.00588261]
[1673572997030,1.2784193,18809.0,18808.0,0.00607261]
[1673572997280,1.68046245,18809.0,18808.0,0.00607261]
[1673572997534,2.41690008,18809.0,18808.0,0.00607261]
[1673572997805,1.80027445,18809.0,18808.0,0.00607261]
[1673572998022,2.11856611,18809.0,18808.0,0.00607261]
[1673572998521,2.16156611,18809.0,18808.0,0.01007261]
[1673572998768,2.16156611,18809.0,18808.0,0.00988261]
[1673572999014,2.50435607,18809.0,18808.0,0.00988261]
[1673572999266,2.50435607,18809.0,18807.0,0.00606346]
[1673572999267,0.1,18808.0,18807.0,0.00606346]
[1673572999518,0.8416414,18808.0,18807.0,0.00606346]
[1673572999764,0.98138,18808.0,18807.0,0.00606346]
[1673573000730,1.25310963,18808.0,18807.0,0.00606346]
[1673573000983,0.98138,18808.0,18807.0,0.00606346]
[1673573001476,0.98438,18808.0,18807.0,0.03506346]
[1673573002206,1.35795039,18808.0,18807.0,0.03506346]
[1673573002927,1.07545039,18808.0,18807.0,0.03506346]
[1673573003456,1.37545039,18808.0,18807.0,0.03506346]
[1673573003687,1.07545039,18808.0,18807.0,0.03506346]
[1673573004741,1.27566284,18808.0,18807.0,0.03506346]
[1673573005241,1.07545039,18808.0,18807.0,0.03506346]
[1673573005495,1.37545039,18808.0,18807.0,0.03506346]
[1673573006011,1.07545039,18808.0,18807.0,0.03506346]
[1673573006255,1.37545039,18808.0,18807.0,0.03506346]
[1673573007478,1.63619747,18808.0,18807.0,0.03506346]
[1673573008459,1.63619747,18808.0,18802.0,1.32151877]
[1673573008460,2.27785496,18808.0,18802.0,1.32151877]
[1673573008714,1.90778907,18807.0,18803.0,0.00019]
[1673573008963,0.39888,18806.0,18803.0,0.00019]
[1673573009215,0.44136956,18806.0,18803.0,0.00019]
[1673573009466,0.59888,18805.0,18803.0,0.00019]
[1673573009719,0.1413,18804.0,18803.0,0.00019]
[1673573009986,0.44018,18804.0,18803.0,0.00019]
[1673573010234,0.54018,18804.0,18803.0,0.059]
[1673573010485,0.2413,18804.0,18803.0,0.5693932]
[1673573011232,0.2413,18804.0,18803.0,0.5103932]
[1673573011492,0.2533,18804.0,18803.0,0.5693932]
[1673573011987,0.34902987,18804.0,18803.0,0.5693932]
[1673573012232,0.2413,18804.0,18802.0,0.90551877]
[1673573012481,0.88821376,18804.0,18803.0,0.058]
[1673573012946,1.18709376,18804.0,18803.0,0.058]
[1673573013188,1.17709376,18804.0,18802.0,1.54505429]
[1673573013439,0.87821376,18804.0,18802.0,1.54505429]
[1673573014199,0.87821376,18804.0,18802.0,1.60405429]
[1673573014200,0.89021376,18804.0,18802.0,1.60405429]
[1673573014445,0.1533,18804.0,18802.0,1.60405429]
[1673573015936,0.81008426,18804.0,18802.0,1.60405429]
[1673573016897,0.82902562,18803.0,18802.0,0.96351877]
[1673573017898,1.12790562,18803.0,18802.0,0.96351877]
[1673573018140,0.82902562,18803.0,18802.0,0.90451877]
[1673573018618,0.84102562,18803.0,18802.0,0.96351877]
[1673573022069,0.1533,18803.0,18802.0,0.96351877]
[1673573028031,0.012,18803.0,18802.0,0.96351877]
[1673573029331,0.012,18803.0,18802.0,1.8107937]
[1673573029550,1.14696145,18807.0,18803.0,0.1]
[1673573029799,0.80559189,18807.0,18804.0,0.54068494]
[1673573030050,0.90559189,18807.0,18805.0,0.33038]
[1673573030294,0.90559189,18807.0,18805.0,0.21030494]
[1673573030536,0.90559189,18807.0,18803.0,0.65911073]
[1673573030781,0.90559189,18807.0,18803.0,0.93841567]
[1673573030782,0.91559189,18807.0,18803.0,0.93841567]
[1673573031022,0.90559189,18807.0,18803.0,0.31030494]
[1673573031263,0.90559189,18807.0,18805.0,0.006]
[1673573031509,0.96059189,18807.0,18804.0,0.67999928]
[1673573032004,0.97059189,18807.0,18804.0,0.67999928]
[1673573032241,0.6836224,18806.0,18804.0,0.67999928]
[1673573032961,0.6836224,18806.0,18805.0,0.006]
[1673573033204,0.6836224,18806.0,18804.0,0.67999928]
[1673573033205,0.5836224,18806.0,18804.0,0.67999928]
[1673573033443,0.5866224,18806.0,18804.0,0.69999928]
[1673573033679,0.5836224,18806.0,18804.0,0.67999928]
[1673573033923,0.6386224,18806.0,18805.0,0.006]
[1673573034158,0.7386224,18806.0,18805.0,0.006]
[1673573034462,0.6836224,18806.0,18804.0,0.74899928]
[1673573034674,0.6836224,18806.0,18804.0,0.67999928]
[1673573035415,1.25102851,18806.0,18804.0,0.67999928]
[1673573035662,1.59110113,18805.0,18802.0,0.90451877]
[1673573035911,1.59110113,18805.0,18802.0,1.26113812]
[1673573035912,0.1407,18803.0,18802.0,1.26113812]
[1673573036157,0.43958,18803.0,18802.0,1.26113812]
[1673573036406,0.1407,18803.0,18802.0,0.90451877]
[1673573036651,0.64524085,18803.0,18802.0,0.90451877]
[1673573037154,0.65624085,18803.0,18802.0,0.97451877]
[1673573038406,0.75624085,18803.0,18802.0,0.97451877]
[1673573038653,0.61554085,18803.0,18802.0,0.97451877]
[1673573040096,0.011,18803.0,18802.0,0.97451877]
[1673573040349,0.011,18803.0,18802.0,1.52653478]
[1673573040600,0.011,18803.0,18802.0,1.85691478]
[1673573041086,0.011,18803.0,18802.0,1.95691478]
[1673573041807,0.011,18803.0,18802.0,2.11545922]
[1673573042932,0.011,18803.0,18802.0,2.25655922]
[1673573043682,0.011,18803.0,18802.0,3.21169376]
[1673573043939,0.011,18803.0,18802.0,2.80097775]
[1673573044204,0.011,18803.0,18802.0,2.95977843]
[1673573044452,0.011,18803.0,18802.0,2.80158007]
[1673573044704,0.011,18803.0,18802.0,2.80157852]
[1673573045195,0.011,18803.0,18802.0,2.80177852]
[1673573045694,0.011,18803.0,18802.0,3.25288251]
[1673573045929,0.011,18803.0,18802.0,2.95997843]
[1673573046148,0.011,18803.0,18802.0,3.54761975]
[1673573046636,0.011,18803.0,18802.0,2.95997843]
[1673573047412,0.011,18803.0,18802.0,3.54511728]
[1673573047672,0.011,18803.0,18802.0,3.38700825]
[1673573048412,0.011,18803.0,18802.0,3.28700825]
[1673573048652,0.011,18803.0,18802.0,2.56988255]
[1673573048895,0.011,18803.0,18802.0,2.33187371]
[1673573049405,0.011,18803.0,18802.0,2.56988255]
[1673573049651,0.011,18803.0,18802.0,2.33187371]
[1673573050620,0.011,18803.0,18802.0,2.56988255]
[1673573051339,0.011,18803.0,18802.0,2.33187371]
[1673573051595,0.011,18803.0,18802.0,2.56988255]
[1673573051809,0.011,18803.0,18802.0,3.28834149]
[1673573052096,0.011,18803.0,18802.0,3.28834548]
[1673573052355,0.011,18803.0,18802.0,2.33187371]
[1673573054328,0.011,18803.0,18802.0,2.17263762]
[1673573059531,0.011,18803.0,18802.0,2.33187371]
[1673573060784,0.011,18803.0,18802.0,2.17263762]
[1673573061050,0.011,18803.0,18802.0,1.84225762]
[1673573061297,0.011,18803.0,18802.0,2.17263762]
[1673573062546,0.011,18803.0,18802.0,2.17356238]
[1673573065467,0.011,18803.0,18802.0,2.33279847]
[1673573066717,0.011,18803.0,18802.0,2.57080731]
[1673573067501,1e-08,18803.0,18802.0,2.70357187]
[1673573067993,1e-08,18803.0,18802.0,2.42097187]
[1673573068511,1e-08,18803.0,18802.0,2.42107965]
[1673573068773,1e-08,18803.0,18802.0,2.26173578]
[1673573069015,1e-08,18803.0,18802.0,2.5790809]
[1673573069258,1e-08,18803.0,18802.0,2.42107989]
[1673573071531,1e-08,18803.0,18802.0,2.26173578]
[1673573071778,1e-08,18803.0,18802.0,2.5790809]
[1673573072264,1e-08,18803.0,18802.0,2.42103281]
[1673573072519,1e-08,18803.0,18802.0,2.26173578]
[1673573072768,1e-08,18803.0,18802.0,2.42102574]
[1673573074996,1e-08,18803.0,18802.0,0.5659312]
[1673573075259,1e-08,18803.0,18802.0,0.2355512]
[1673573079459,1e-08,18803.0,18802.0,0.47356004]
[1673573080002,1e-08,18803.0,18802.0,1.19053483]
[1673573080467,1e-08,18803.0,18802.0,0.47356004]
[1673573080715,1e-08,18803.0,18802.0,1.1909801]
[1673573080957,1e-08,18803.0,18802.0,0.2355512]
[1673573081195,1e-08,18803.0,18802.0,0.47356004]
[1673573081443,0.02801049,18803.0,18802.0,0.47356004]
[1673573082930,0.02801049,18803.0,18802.0,1.19089713]
[1673573083177,0.02801049,18803.0,18802.0,1.67933229]
[1673573083471,0.02801049,18803.0,18802.0,1.77933229]
[1673573083728,0.02801049,18803.0,18802.0,1.93800485]
[1673573084244,0.02801049,18803.0,18802.0,2.62264234]
[1673573084483,0.02801049,18803.0,18802.0,2.46497345]
[1673573084731,0.02801049,18803.0,18802.0,2.46497655]
[1673573085215,0.02801049,18803.0,18802.0,2.62264234]
[1673573085452,0.02801049,18803.0,18802.0,2.46496236]
[1673573085691,0.02801049,18803.0,18802.0,2.22596094]
[1673573085928,0.02801049,18803.0,18802.0,2.46495622]
[1673573086663,0.02801049,18803.0,18802.0,2.22596094]
[1673573086900,0.02801049,18803.0,18802.0,2.62264234]
[1673573087393,0.02801049,18803.0,18802.0,2.4649738]
[1673573088172,0.02801049,18803.0,18802.0,2.3649738]
[1673573089643,0.02801049,18803.0,18802.0,2.04762868]
[1673573089892,0.02801049,18803.0,18802.0,2.3649738]
[1673573091665,0.02801049,18803.0,18802.0,2.52264234]
[1673573092671,0.02801049,18803.0,18802.0,2.12596094]
[1673573092922,0.02801049,18803.0,18802.0,2.36493696]
[1673573093168,0.02801049,18803.0,18802.0,1.68029947]
[1673573093411,0.02801049,18803.0,18802.0,1.52065973]
[1673573093650,0.02801049,18803.0,18802.0,1.83918257]
[1673573093901,0.02801049,18803.0,18802.0,1.93918257]
[1673573094140,0.02801049,18803.0,18802.0,2.60090847]
[1673573094395,0.02801049,18803.0,18802.0,2.28238563]
[1673573094637,0.02801049,18803.0,18802.0,1.62065973]
[1673573095420,0.02801049,18803.0,18802.0,2.25417698]
[1673573095675,0.02801049,18803.0,18802.0,2.57253458]